bitfinex-derivatives/quotes_ETHF0:USTF0_20250804
["timestamp","ask_amount","ask_price","bid_price","bid_amount"]
[1754286083618,2.585,3526.8,3526.7,1.5539]
[1754286083819,1.61247,3526.8,3526.6,0.5363]
[1754286084025,2.585,3526.7,3526.6,1.0723]
[1754286084218,3.41431283,3526.7,3526.6,1.0723]
[1754286084420,2.585,3526.7,3526.3,0.56713]
[1754286084620,2.585,3526.3,3526.2,4.4094]
[1754286084922,2.585,3526.3,3526.2,5.7755]
[1754286085723,2.0395,3526.3,3526.2,5.7755]
[1754286088428,1.499,3526.3,3526.2,5.298]
[1754286088631,1.0454,3526.6,3526.5,1.58499]
[1754286088825,2.585,3526.6,3526.5,2.5677]
[1754286093032,1.5396,3526.5,3526.0,1.5498]
[1754286093329,1.0454,3526.5,3526.4,2.5677]
[1754286093832,2.585,3526.5,3526.4,2.5677]
[1754286096232,2.0395,3526.5,3526.4,2.5677]
[1754286097135,3.2078,3526.6,3526.5,3.13481]
[1754286097530,3.6614,3526.6,3526.5,3.13481]
[1754286097929,0.4536,3526.6,3526.5,3.13481]
[1754286098127,2.585,3526.9,3526.8,1.0179]
[1754286098328,2.585,3526.9,3526.8,2.5677]
[1754286099834,6.47727691,3526.9,3526.8,0.536]
[1754286100137,1.0454,3526.4,3526.3,1.0179]
[1754286100334,2.585,3526.4,3526.3,1.0179]
[1754286100835,2.585,3526.4,3526.3,2.5677]
[1754286101527,3.2078,3526.6,3526.4,0.56712]
[1754286101734,2.585,3526.9,3526.8,1.0179]
[1754286101933,2.585,3526.9,3526.7,0.56706]
[1754286101934,3.2078,3527.4,3527.3,1.0179]
[1754286102235,6.61980415,3527.4,3527.3,2.0902]
[1754286102640,6.61980415,3527.4,3526.4,3.89227691]
[1754286102641,2.585,3527.2,3527.1,1.5542]
[1754286103133,2.585,3527.2,3526.9,0.4775]
[1754286103134,1.0454,3527.0,3526.9,1.4954]
[1754286103438,5.7928,3527.0,3526.9,2.5677]
[1754286104637,5.7928,3527.0,3526.9,0.8923]
[1754286104931,2.5148,3526.8,3526.7,2.1829]
[1754286105332,3.77483,3527.0,3526.7,0.6936]
[1754286105535,4.8484,3527.0,3526.9,2.4923]
[1754286105729,5.1913,3527.0,3526.9,2.4923]
[1754286106338,6.01905554,3527.0,3526.9,2.4923]
[1754286106738,6.01905554,3527.0,3526.9,3.05934]
[1754286107039,6.01905554,3527.0,3526.9,2.4923]
[1754286107536,6.55035554,3527.0,3526.9,2.4923]
[1754286115147,4.03555554,3527.0,3526.9,3.05934]
[1754286119952,0.82775554,3527.0,3526.9,3.05934]
[1754286120245,4.2054,3527.5,3527.2,1.56999]
[1754286120448,0.83026223,3527.4,3527.3,1.9487]
[1754286120748,1.15866223,3527.4,3527.3,2.4923]
[1754286121048,0.83026223,3527.4,3527.3,2.4923]
[1754286123546,1.30316223,3527.4,3527.3,2.4923]
[1754286124350,1.63156223,3527.4,3527.3,2.4923]
[1754286124551,3.34506223,3527.4,3527.3,2.4923]
[1754286127255,3.91202223,3527.4,3527.3,2.4923]
[1754286127551,1.4588,3527.1,3527.0,1.5018]
[1754286127750,1.4588,3527.1,3527.0,0.8321]
[1754286128048,3.34506223,3527.1,3527.0,0.8321]
[1754286128450,3.34506223,3527.1,3527.0,1.8226]
[1754286128753,3.34506223,3527.1,3527.0,2.4923]
[1754286131260,2.81376223,3527.1,3527.0,2.4923]
[1754286131554,3.34506223,3527.1,3527.0,2.4923]
[1754286132958,2.81376223,3527.1,3527.0,2.4923]
[1754286135461,3.34896223,3527.1,3527.0,2.4923]
[1754286136964,2.81376223,3527.1,3527.0,2.4923]
[1754286137264,0.83026223,3527.1,3527.0,2.4923]
[1754286137464,1.27476223,3527.1,3527.0,2.4923]
[1754286137662,3.28056223,3527.1,3527.0,2.4923]
[1754286139564,2.74536223,3527.1,3527.0,2.4923]
[1754286140363,2.24506223,3527.1,3527.0,2.4923]
[1754286140561,1.80056223,3527.1,3527.0,2.4923]
[1754286140860,0.83026223,3527.1,3527.0,2.4923]
[1754286145162,2.41146223,3527.1,3527.0,2.4923]
[1754286145366,2.74536223,3527.1,3527.0,2.4923]
[1754286145761,2.74536223,3527.1,3527.0,1.5018]
[1754286145966,3.28056223,3527.1,3527.0,2.5016]
[1754286149368,2.74536223,3527.1,3527.0,2.5016]
[1754286149569,1.46666223,3527.1,3527.0,2.5016]
[1754286150159,2.74536223,3527.1,3527.0,2.5016]
[1754286150569,2.24506223,3527.1,3527.0,2.5016]
[1754286150769,3.28056223,3527.1,3527.0,2.5016]
[1754286154277,3.28056223,3527.1,3527.0,1.003]
[1754286154474,1.80056223,3527.1,3526.5,3.2078]
[1754286154667,2.24506223,3527.0,3526.9,1.3427]
[1754286154869,2.24506223,3527.0,3526.9,2.4916]
[1754286155264,2.24506223,3527.0,3526.6,1.0131]
[1754286155469,2.4503,3527.0,3526.9,2.4916]
[1754286155671,3.28067104,3527.0,3526.9,2.4916]
[1754286156669,2.24517104,3527.0,3526.9,2.4916]
[1754286157470,2.74547104,3527.0,3526.9,2.4916]
[1754286158771,6.63774795,3527.0,3526.5,3.2078]
[1754286158981,2.78037104,3526.9,3526.8,2.4916]
[1754286159473,3.28067104,3526.9,3526.8,2.4916]
[1754286160266,3.28067104,3526.9,3526.8,1.3427]
[1754286160464,2.4503,3526.6,3526.5,1.9705]
[1754286160669,3.28067104,3526.6,3526.5,2.0129]
[1754286160868,3.28067104,3526.6,3526.5,0.492]
[1754286162274,0.5671,3526.5,3526.3,0.5211]
[1754286162467,0.83037104,3526.4,3526.3,2.4916]
[1754286163073,1.27487104,3526.4,3526.3,2.4916]
[1754286163276,1.4148,3526.4,3526.3,2.4916]
[1754286163568,3.28067104,3526.4,3526.3,2.4916]
[1754286165479,3.28067104,3526.4,3526.3,2.4848]
[1754286165782,3.28067104,3526.4,3526.0,0.5246]
[1754286165783,2.75887104,3526.4,3526.0,0.5246]
[1754286165969,3.22647104,3526.3,3526.2,2.4552]
[1754286166175,0.9304,3526.1,3526.0,1.04637]
[1754286166473,1.8858,3526.1,3526.0,3.02237]
[1754286167284,1.3721,3526.1,3526.0,3.02237]
[1754286168071,1.3721,3526.1,3526.0,2.4552]
[1754286168278,1.8858,3526.1,3526.0,2.4552]
[1754286171986,0.4417,3526.1,3526.0,2.4552]
[1754286172186,2.3961,3526.3,3526.2,0.983]
[1754286172384,3.2237729,3526.3,3526.2,2.4552]
[1754286173182,2.3961,3526.3,3526.2,2.4552]
[1754286176681,1.8858,3526.3,3526.2,2.4552]
[1754286178487,1.8858,3526.3,3526.0,0.56718]
[1754286178786,2.3961,3526.2,3526.1,1.4514]
[1754286179177,0.56717,3526.1,3525.9,4.22880143]
[1754286179378,6.28837691,3526.0,3525.9,1.02100143]
[1754286180381,7.11632089,3526.0,3525.9,1.02100143]
[1754286180583,6.28837691,3526.0,3525.9,1.02100143]
[1754286181287,7.11640498,3526.0,3525.9,1.50020143]
[1754286181585,6.51221042,3526.0,3525.0,23.26914]
[1754286181786,0.9304,3525.7,3525.6,0.983]
[1754286181992,2.3961,3525.7,3525.6,2.4552]
[1754286182487,2.0748,3525.6,3525.5,0.983]
[1754286182692,0.9304,3525.6,3525.5,2.4552]
[1754286182985,0.9304,3525.6,3524.8,1.41842]
[1754286182986,0.6382,3524.8,3524.7,0.89649]
[1754286183192,0.6382,3524.8,3524.3,3.2078]
[1754286183386,0.6382,3524.7,3524.6,0.983]
[1754286183586,0.6382,3524.7,3524.6,1.976]
[1754286183985,1.1485,3524.7,3524.6,1.976]
[1754286184188,1.6622,3524.7,3524.6,1.976]
[1754286184488,1.6622,3524.7,3524.6,0.7793]
[1754286184688,1.59141,3524.6,3524.5,0.3109]
[1754286184884,6.12188691,3524.6,3524.5,0.3109]
[1754286185388,1.71934,3524.4,3524.3,2.4552]
[1754286185583,0.6382,3524.3,3524.2,1.6197]
[1754286185899,0.3213,3524.4,3524.3,2.4552]
[1754286186691,0.3213,3524.4,3524.3,3.02266]
[1754286187093,1.6622,3524.6,3524.5,2.4552]
[1754286188894,0.5103,3524.5,3524.1,0.56747]
[1754286189091,1.6622,3524.2,3524.1,3.02267]
[1754286189486,1.6622,3524.5,3524.4,1.22134]
[1754286189693,1.6622,3524.5,3524.4,3.02264]
[1754286189903,1.6622,3524.5,3524.4,2.4552]
[1754286190494,3.89227691,3524.6,3524.3,0.3109]
[1754286190693,0.6382,3524.6,3524.5,0.983]
[1754286190891,1.47130324,3524.6,3524.5,0.983]
[1754286191296,1.6622,3524.6,3524.5,0.983]
[1754286191496,1.6622,3524.6,3524.5,2.4552]
[1754286193608,1.6622,3524.6,3524.5,1.976]
[1754286193905,1.6622,3524.6,3524.5,1.3039]
[1754286194105,1.6622,3524.6,3524.5,1.976]
[1754286194299,1.6622,3524.6,3524.5,2.5006]
[1754286197010,1.1485,3524.6,3524.5,2.5006]
[1754286197406,1.6492,3524.6,3524.5,2.5006]
[1754286197914,3.2078,3525.0,3524.9,2.4992]
[1754286198202,8.77567691,3525.2,3525.1,1.9746]
[1754286198402,9.34298691,3525.2,3525.1,0.3047]
[1754286198601,1.57046,3524.9,3524.7,0.7832]
[1754286198906,0.6725,3524.6,3524.5,1.5053]
[1754286199106,1.6756,3524.6,3524.5,1.5053]
[1754286199507,1.6756,3524.6,3524.5,2.4992]
[1754286200304,2.24301,3524.6,3524.5,2.4992]
[1754286200603,2.24301,3524.6,3524.5,1.9746]
[1754286201208,1.6756,3524.6,3524.5,1.9746]
[1754286201705,1.6756,3524.6,3524.5,2.4992]
[1754286202107,0.3437,3524.6,3524.5,2.4992]
[1754286202412,3.2078,3524.8,3524.7,2.4992]
[1754286204009,0.478,3525.4,3524.8,1.04]
[1754286204209,0.478,3525.4,3525.3,1.716]
[1754286204210,6.36487691,3525.4,3525.3,1.716]
[1754286204406,0.9915,3525.2,3525.1,1.1914]
[1754286204603,0.9915,3524.7,3524.6,0.676]
[1754286204802,1.9946,3524.7,3524.6,1.716]
[1754286205007,4.71197691,3525.0,3524.9,1.716]
[1754286205207,6.36487691,3525.0,3524.9,1.716]
[1754286205805,2.4726,3525.0,3524.9,1.716]
[1754286208420,4.45957691,3525.3,3524.8,0.56737]
[1754286208421,6.36487691,3525.3,3525.2,1.716]
[1754286208616,2.3026437,3525.3,3525.2,0.676]
[1754286208817,3.3057437,3525.3,3525.2,1.716]
[1754286209515,0.8331437,3525.3,3525.2,1.716]
[1754286209713,0.797,3525.3,3525.2,0.676]
[1754286209913,1.9738437,3525.3,3525.2,0.676]
[1754286210114,3.3057437,3525.3,3525.2,0.676]
[1754286210314,3.3057437,3525.3,3525.2,1.716]
[1754286210515,1.4958437,3525.3,3525.2,1.716]
[1754286210716,1.6431,3525.3,3525.2,1.716]
[1754286210915,3.3057437,3525.3,3525.2,1.716]
[1754286211924,3.8730437,3525.3,3525.2,1.716]
[1754286213121,3.3057437,3525.3,3525.2,1.716]
[1754286215220,1.4958437,3525.3,3525.2,1.1914]
[1754286215424,3.30745911,3525.3,3525.2,1.716]
[1754286215926,7.19973602,3525.3,3525.2,1.716]
[1754286216121,7.19973602,3525.3,3525.2,0.676]
[1754286216322,0.9915,3525.1,3525.0,1.1914]
[1754286216517,3.30745911,3525.1,3525.0,1.716]
[1754286220126,2.80675911,3525.1,3525.0,1.716]
[1754286220325,0.83485911,3525.1,3525.0,1.716]
[1754286220520,0.83485911,3525.4,3525.1,0.56733]
[1754286220726,1.63185911,3525.3,3525.2,0.676]
[1754286220929,1.63185911,3525.3,3525.2,1.716]
[1754286221426,1.15385911,3525.3,3525.2,1.716]
[1754286222629,1.15402012,3525.3,3525.2,1.716]
[1754286223334,0.83502012,3525.3,3525.2,1.716]
[1754286223632,0.83502012,3525.4,3525.3,1.2433]
[1754286223833,0.83502012,3525.4,3525.3,2.2833]
[1754286224228,1.64379778,3526.1,3526.0,0.6609]
[1754286224430,1.0135,3526.2,3526.1,1.3263]
[1754286224630,0.5352,3526.2,3526.1,1.6512]
[1754286225028,1.1649,3526.2,3526.1,1.6512]
[1754286225227,2.5199,3526.2,3526.1,1.6512]
[1754286225427,5.3723,3526.4,3526.3,0.6609]
[1754286225628,5.3723,3526.4,3526.3,1.6512]
[1754286226127,3.2078,3526.4,3526.3,1.6512]
[1754286226331,3.2078,3526.4,3526.3,0.6609]
[1754286226526,5.7277,3526.4,3526.3,1.6512]
[1754286227428,3.2078,3526.4,3526.3,1.6512]
[1754286229932,0.7727,3526.7,3526.6,0.6609]
[1754286230136,1.3079,3526.7,3526.6,1.6512]
[1754286230430,1.3079,3526.7,3526.6,2.21829]
[1754286230634,2.5199,3526.6,3526.5,0.6609]
[1754286230834,2.5199,3526.6,3526.5,2.2183]
[1754286231045,4.7281,3526.9,3526.8,0.6609]
[1754286231243,5.7277,3526.9,3526.8,1.1478]
[1754286231432,5.7277,3526.9,3526.8,1.6512]
[1754286231635,4.3588,3526.9,3526.8,1.6512]
[1754286231832,5.7277,3526.9,3526.8,1.6512]
[1754286233540,1.9986,3526.9,3526.8,1.6512]
[1754286233839,0.2944,3526.9,3526.8,1.6512]
[1754286234036,1.6293,3527.1,3527.0,0.6609]
[1754286234236,2.1645,3527.1,3527.0,1.6512]
[1754286234435,2.5199,3527.1,3527.0,1.6512]
[1754286237935,1.6432,3527.1,3527.0,1.6512]
[1754286238842,0.6297,3527.1,3527.0,1.6512]
[1754286239342,2.5199,3527.3,3527.2,0.6609]
[1754286239548,2.5199,3527.3,3527.2,1.6512]
[1754286240042,2.5199,3527.0,3526.9,2.21824]
[1754286240239,2.5199,3526.8,3526.6,3.2078]
[1754286240437,2.5199,3526.7,3526.6,3.2078]
[1754286242049,3.08697,3526.7,3526.6,3.2078]
[1754286242940,2.5199,3526.7,3526.6,3.2078]
[1754286243343,2.5199,3526.7,3526.6,3.8687]
[1754286243543,2.5199,3526.7,3526.6,4.859]
[1754286243748,0.6297,3526.8,3526.7,1.55737]
[1754286243947,0.6297,3526.8,3526.7,2.21827]
[1754286244441,1.6432,3527.0,3526.9,2.21824]
[1754286244643,2.5199,3527.0,3526.9,2.21824]
[1754286247642,1.6432,3527.2,3527.1,2.21821]
[1754286248042,1.9986,3527.2,3527.1,2.21821]
[1754286248336,1.4634,3527.2,3527.1,0.6609]
[1754286248542,1.4634,3527.2,3527.1,1.6512]
[1754286248838,0.6297,3527.4,3527.3,2.21818]
[1754286249044,0.4783,3527.7,3527.5,0.89184]
[1754286249045,0.6297,3527.6,3527.5,0.89184]
[1754286249245,0.6297,3527.6,3527.1,3.89227691]
[1754286249246,2.5199,3527.8,3527.7,1.6512]
[1754286249447,3.3469089,3527.8,3527.7,1.6512]
[1754286249840,2.5199,3527.8,3527.7,1.6512]
[1754286250444,0.9851,3527.6,3527.5,1.22784]
[1754286250750,2.5199,3527.6,3527.5,1.71474]
[1754286251046,2.5199,3527.6,3527.5,2.21814]
[1754286251238,0.2944,3527.6,3527.5,2.21814]
[1754286251638,1.9986,3528.1,3528.0,0.6609]
[1754286251939,3.34750854,3528.1,3528.0,1.6512]
[1754286253642,2.82620854,3528.1,3528.0,1.6512]
[1754286254745,1.9986,3528.1,3528.0,1.6512]
[1754286255050,3.3294515,3528.1,3528.0,1.1478]
[1754286256552,3.3294515,3528.1,3528.0,1.6758]
[1754286256745,2.501,3528.1,3528.0,1.6768]
[1754286257658,2.4286,3528.4,3528.3,1.26741]
[1754286257844,3.25689397,3528.4,3528.3,2.29391]
[1754286258048,2.4286,3528.4,3528.3,2.29391]
[1754286259947,2.4286,3528.4,3528.3,1.42311]
[1754286260349,2.4286,3528.4,3528.3,0.8563]
[1754286260550,1.4591,3528.0,3527.9,1.1981]
[1754286260851,1.4591,3528.0,3527.9,0.6996]
[1754286260852,2.4286,3528.0,3527.9,0.6996]
[1754286261359,2.4286,3528.0,3527.9,1.1981]
[1754286263958,2.99547,3528.0,3527.8,3.2078]
[1754286264262,2.4286,3528.0,3527.9,1.7261]
[1754286264948,2.4286,3528.0,3527.9,1.1981]
[1754286265857,2.99546,3528.0,3527.8,3.2078]
[1754286266051,2.4286,3527.6,3527.5,1.76504]
[1754286266657,2.4286,3527.6,3527.5,0.6996]
[1754286267452,0.9695,3527.5,3527.4,0.56695]
[1754286267653,0.9695,3527.5,3527.3,3.2078]
[1754286267654,2.4286,3527.5,3527.3,3.2078]
[1754286267953,2.4286,3527.4,3527.3,1.1981]
[1754286268562,2.4286,3527.4,3527.3,1.7271]
[1754286273660,0.9567,3527.8,3527.7,0.92571]
[1754286273859,0.5024,3528.0,3527.7,5.50181]
[1754286273860,0.82906366,3527.9,3527.7,5.50181]
[1754286274062,2.28816366,3528.0,3527.9,1.26748]
[1754286274260,3.25766366,3528.0,3527.9,2.29398]
[1754286275357,3.25766366,3528.0,3527.9,1.76498]
[1754286275563,3.25766366,3528.0,3527.9,1.26648]
[1754286275868,2.4286,3527.9,3527.8,0.56689]
[1754286276168,2.4286,3527.9,3527.6,0.56692]
[1754286276169,2.4286,3527.8,3527.6,0.56692]
[1754286276362,2.4286,3527.7,3527.5,0.56694]
[1754286276559,2.4286,3527.6,3527.5,0.56694]
[1754286277464,1.913,3527.6,3527.4,0.56695]
[1754286277668,2.4286,3527.5,3527.4,0.90875]
[1754286279151,2.4286,3527.5,3527.4,1.40725]
[1754286279564,2.4286,3527.5,3527.4,0.8403]
[1754286279763,2.4286,3527.5,3527.4,0.3418]
[1754286280566,2.4286,3527.5,3527.3,3.77477]
[1754286280764,0.9567,3527.5,3527.3,0.56697]
[1754286281067,2.4286,3527.4,3527.3,0.6996]
[1754286281668,2.4286,3527.4,3527.3,1.1981]
[1754286286172,3.25890598,3527.4,3527.3,1.6838]
[1754286288065,0.9787,3527.8,3527.7,0.6864]
[1754286288261,3.25607104,3527.8,3527.7,2.26461]
[1754286291268,3.25607104,3527.8,3527.7,1.6977]
[1754286291475,3.25607104,3527.8,3527.7,1.213]
[1754286295970,3.25607104,3527.8,3527.7,1.6977]
[1754286300166,1.80877104,3527.8,3527.4,0.4847]
[1754286300367,2.426,3527.4,3527.3,3.77478]
[1754286300667,3.25693175,3527.4,3527.3,4.98778]
[1754286300866,3.25693175,3527.4,3527.3,4.46118]
[1754286301467,3.25693175,3527.4,3527.3,3.2078]
[1754286301668,2.26033175,3527.4,3527.1,0.567]
[1754286301866,0.9787,3527.2,3527.1,1.2534]
[1754286302066,2.426,3527.2,3527.1,1.213]
[1754286302272,2.1096,3526.8,3526.7,1.25346]
[1754286302562,2.426,3526.8,3526.7,2.26476]
[1754286304873,3.2078,3527.6,3527.1,1.77999]
[1754286305072,2.426,3527.3,3527.2,1.6977]
[1754286305273,1.4637684,3527.3,3527.2,1.6977]
[1754286305874,2.4026684,3527.3,3527.2,1.6977]
[1754286306082,3.2560684,3527.3,3527.2,1.6977]
[1754286312477,0.9966,3527.2,3526.9,3.2078]
[1754286312674,0.9787,3527.0,3526.9,1.78004]
[1754286312977,2.426,3527.0,3526.9,2.26474]
[1754286317377,2.99302,3527.0,3526.9,0.6864]
[1754286317574,0.9494,3526.9,3526.7,0.56706]
[1754286317776,2.4114,3526.8,3526.7,0.56706]
[1754286318581,0.56702,3527.0,3526.6,0.4696]
[1754286318582,2.4114,3526.7,3526.6,1.1431]
[1754286318784,0.9494,3526.7,3526.6,0.33]
[1754286319083,2.4114,3526.7,3526.6,1.1431]
[1754286321381,2.4114,3526.7,3526.5,3.2078]
[1754286321581,2.4114,3526.6,3526.5,3.77489]
[1754286321980,2.4114,3526.6,3526.5,4.57449]
[1754286322281,2.4114,3526.6,3526.5,4.91799]
[1754286323083,2.4114,3526.6,3526.5,5.39549]
[1754286326584,2.4114,3526.9,3526.8,1.6206]
[1754286327087,3.24155956,3526.9,3526.8,1.6206]
[1754286327987,3.24155956,3526.9,3526.8,2.18766]
[1754286329288,3.24155956,3526.9,3526.8,1.1431]
[1754286329490,3.24155956,3526.9,3526.8,0.33]
[1754286329788,1.77955956,3526.9,3526.7,0.56706]
[1754286329992,3.24155956,3526.8,3526.7,1.71016]
[1754286330584,3.24155956,3526.8,3526.7,1.1431]
[1754286330785,2.4114,3526.6,3526.5,3.2078]
[1754286331490,2.4114,3526.6,3526.5,4.0074]
[1754286331684,2.4114,3526.6,3526.5,4.3509]
[1754286331882,2.4114,3526.6,3526.5,4.8284]
[1754286332280,2.4114,3526.6,3526.5,1.6206]
[1754286332684,2.4114,3526.6,3526.5,1.1431]
[1754286333287,2.4114,3526.6,3526.5,1.6206]
[1754286336695,0.9494,3527.1,3527.0,1.1431]
[1754286336896,1.77974367,3527.1,3527.0,1.6206]
[1754286337092,2.43494367,3527.1,3527.0,1.6206]
[1754286337392,2.4114,3527.4,3527.3,0.6735]
[1754286337694,3.24187766,3527.4,3527.3,1.6206]
[1754286338690,3.24187766,3527.4,3527.3,2.18758]
[1754286339494,3.24187766,3527.4,3527.3,0.6735]
[1754286339792,2.4114,3527.3,3527.2,0.7996]
[1754286339996,3.24187766,3527.3,3527.2,1.1431]
[1754286340699,3.24187766,3527.3,3527.2,1.6206]
[1754286341096,0.83047766,3527.3,3527.2,1.6206]
[1754286341394,4.1805,3527.6,3527.0,3.89227691]
[1754286341395,1.80317766,3527.5,3527.4,1.6206]
[1754286341599,2.12087766,3527.5,3527.4,1.6206]
[1754286342103,1.66037766,3527.5,3527.4,1.6206]
[1754286342295,0.83047766,3527.5,3527.4,4.8284]
[1754286342498,0.83047766,3527.8,3527.7,1.6206]
[1754286342699,0.83047766,3527.8,3527.7,2.18751]
[1754286342899,3.24187766,3528.1,3528.0,2.18746]
[1754286343096,1.95167766,3528.1,3528.0,2.18746]
[1754286343298,1.14817766,3528.1,3528.0,2.18746]
[1754286343606,2.12087766,3528.1,3528.0,2.18746]
[1754286343809,2.43507766,3528.1,3528.0,2.18746]
[1754286344001,2.92457766,3528.1,3528.0,2.18746]
[1754286344603,3.24757766,3528.1,3528.0,2.18746]
[1754286347303,2.4171,3528.1,3528.0,2.18746]
[1754286347705,1.9276,3528.1,3528.0,2.18746]
[1754286347907,1.6046,3528.1,3528.0,2.18746]
[1754286348308,2.4171,3528.1,3528.0,2.18746]
[1754286350604,2.4171,3528.1,3528.0,0.6735]
[1754286350803,2.35,3527.9,3527.4,3.2078]
[1754286351001,2.35,3527.5,3527.4,3.2078]
[1754286351610,2.35,3527.5,3527.0,20.03602]
[1754286351611,2.91696,3527.5,3527.0,20.03602]
[1754286351913,2.35,3527.2,3527.1,0.56699]
[1754286352408,0.9427,3527.0,3526.9,3.2078]
[1754286352613,2.35,3527.0,3526.9,3.2078]
[1754286354211,2.35,3527.0,3526.9,3.5294]
[1754286354611,2.35,3527.0,3526.9,0.3216]
[1754286354809,2.0262,3526.6,3526.4,3.5294]
[1754286355014,2.35,3526.5,3526.4,4.88922]
[1754286355207,2.35,3526.5,3526.4,5.39042]
[1754286356615,1.5375,3526.5,3526.4,4.59772]
[1754286357114,1.5375,3526.5,3526.4,5.39042]
[1754286358011,0.4607,3526.9,3526.6,1.6155]
[1754286358211,1.5375,3526.9,3526.8,2.18256]
[1754286358610,1.8605,3526.9,3526.8,2.18256]
[1754286358812,2.35,3526.9,3526.8,2.18256]
[1754286360318,2.35,3526.9,3526.8,0.56706]
[1754286361117,0.9427,3526.9,3526.7,0.56706]
[1754286361317,0.56702,3527.1,3526.5,0.5012]
[1754286361318,0.9427,3526.7,3526.5,0.5671]
[1754286361520,2.35,3526.6,3526.5,0.5671]
[1754286361718,2.35,3526.6,3526.5,0.8887]
[1754286361913,2.35,3526.6,3526.5,1.6814]
[1754286362116,2.35,3526.6,3526.5,0.5671]
[1754286362618,0.9427,3526.5,3526.4,1.68141]
[1754286362821,2.35,3526.5,3526.4,1.68141]
[1754286364024,2.35,3526.5,3526.4,2.18261]
[1754286364216,1.8605,3526.5,3526.4,1.68141]
[1754286364423,3.77483,3527.0,3526.7,1.68136]
[1754286364424,1.8893,3526.8,3526.7,1.68136]
[1754286364725,2.35,3526.8,3526.7,1.1143]
[1754286369627,2.35,3526.8,3526.7,1.6155]
[1754286372526,1.5655,3526.8,3526.7,0.7927]
[1754286375626,0.5671,3526.6,3526.4,3.2078]
[1754286375830,1.6063,3526.5,3526.4,0.8085]
[1754286377633,2.41,3526.5,3526.4,1.1338]
[1754286379430,2.41,3526.5,3526.2,0.56714]
[1754286379629,0.9539,3526.1,3526.0,3.8511]
[1754286379830,2.41,3526.1,3526.0,24.2669]
[1754286380030,2.41,3526.1,3526.0,21.0591]
[1754286380430,2.41,3526.1,3526.0,20.5968]
[1754286380630,2.41,3526.1,3526.0,21.0591]
[1754286380825,2.41,3526.1,3526.0,20.5968]
[1754286381130,2.41,3526.1,3526.0,21.0591]
[1754286381837,1.28,3526.2,3526.1,0.6433]
[1754286382032,1.28,3526.2,3526.1,1.5961]
[1754286382230,1.5916,3526.2,3526.1,1.5961]
[1754286382430,2.41,3526.2,3526.1,1.5961]
[1754286383032,2.97715,3526.2,3526.1,0.6433]
[1754286384440,2.41,3526.2,3526.1,0.6433]
[1754286384740,2.41,3526.2,3526.1,1.1338]
[1754286385035,2.41,3526.2,3526.1,1.5961]
[1754286385332,2.41,3526.2,3526.1,1.1338]
[1754286385738,2.41,3526.2,3526.1,20.1053]
[1754286386035,3.24025005,3526.2,3526.1,20.1053]
[1754286386240,3.24025005,3526.2,3526.1,20.5958]
[1754286388340,2.41,3526.2,3526.1,20.5958]
[1754286391337,2.41,3525.8,3525.7,41.7748]
[1754286391536,2.41,3525.8,3525.7,61.2358]
[1754286392837,2.41,3525.8,3525.7,41.3125]
[1754286393134,2.41,3525.8,3525.7,0.6433]
[1754286393339,2.41,3525.8,3525.7,19.7863]
[1754286393737,2.97723,3525.7,3525.6,19.461]
[1754286394733,2.97723,3525.7,3525.4,0.4905]
[1754286394734,0.56726,3525.6,3525.5,0.3253]
[1754286394935,2.97726,3525.6,3525.5,0.8158]
[1754286395143,1.52116,3525.6,3525.4,19.46]
[1754286395341,2.41,3525.5,3525.4,19.46]
[1754286395534,0.6267,3525.3,3524.7,44.61119]
[1754286395741,2.41,3524.9,3524.8,20.5938]
[1754286396034,2.41,3524.9,3524.8,21.0561]
[1754286396434,2.41,3524.9,3524.8,0.6433]
[1754286396635,2.41,3524.9,3524.8,0.3253]
[1754286397241,2.41,3524.9,3524.8,0.8158]
[1754286397647,2.41,3524.9,3524.8,1.1338]
[1754286397944,2.41,3524.9,3524.8,1.5961]
[1754286400950,2.41,3524.9,3524.8,1.1338]
[1754286403350,2.41,3525.4,3525.3,0.88528]
[1754286403651,2.41,3525.4,3525.3,1.21058]
[1754286403853,2.41,3525.4,3525.3,2.12888]
[1754286404055,5.5237,3525.6,3525.5,2.13376]
[1754286405358,0.9418,3525.5,3525.4,0.6532]
[1754286405553,2.3159,3525.5,3525.2,20.02831]
[1754286405759,2.3159,3524.9,3524.8,1.67658]
[1754286405950,2.3159,3524.9,3524.8,21.13758]
[1754286406150,2.3159,3524.9,3524.8,21.59488]
[1754286408061,2.3159,3524.9,3524.8,1.22058]
[1754286408354,2.3159,3524.9,3524.8,20.68158]
[1754286408658,2.3159,3524.9,3524.8,21.13758]
[1754286408853,2.3159,3524.9,3524.8,21.13888]
[1754286409158,2.3159,3524.9,3524.8,21.59488]
[1754286411361,1.5399,3524.9,3524.8,21.59488]
[1754286411564,3.2078,3525.6,3524.8,21.59488]
[1754286411565,3.2078,3525.6,3525.5,1.67646]
[1754286411864,3.2078,3525.6,3525.5,2.13376]
[1754286412162,4.7477,3525.6,3525.5,2.13376]
[1754286412360,5.5237,3525.6,3525.5,2.13376]
[1754286412559,5.5237,3525.6,3525.5,1.67646]
[1754286413459,5.5237,3525.6,3525.5,0.3265]
[1754286413659,2.0117,3525.5,3525.4,0.56727]
[1754286413860,2.3159,3525.4,3525.3,0.89379]
[1754286414167,2.3159,3525.4,3525.3,0.7825]
[1754286414357,0.9023,3525.3,3525.1,20.02732]
[1754286414562,0.9418,3525.2,3525.1,20.68052]